[Event "Superbet Blitz Poland 2023"]
[Site "Warsaw"]
[Date "2023.05.25"]
[Round "14"]
[White "Wojtaszek, Radoslaw"]
[Black "Rapport, Richard"]
[Result "0-1"]
[ECO "A67"]
[WhiteElo "2670"]
[BlackElo "2745"]
[Annotator "TA"]
[PlyCount "160"]
[EventDate "2023.05.24"]
[EventType "tourn"]
[EventCountry "POL"]
[SourceTitle "playchess.com"]
[Source "ChessBase"]
[SourceQuality "1"]
[TimeControl "300+2"]

{[%evp 22,160,18,0,16,40,29,0,-9,-11,56,64,72,-39,0,-168,-146,-168,-177,-152,-168,-153,-181,-156,-163,-165,-106,-109,-106,-119,-70,-125,-132,-121,-115,-109,-110,-93,-89,-94,-29,-29,-29,-29,-29,-19,-19,-19,-18,-28,-22,-29,-29,-74,-74,-74,-74,-78,-46,-78,-78,-82,-83,-80,-42,-83,-45,-166,-166,-166,-77,-833,-661,-841,-698,-630,-495,-508,-412,-398,-231,-210,-167,-391,-359,-5821,-5821,-5477,-4454,-4414,-2648,-4125,-3014,-12843,-29938,-29943,-29944,-29950,-29950,-29962,-29963,-29971,-29972,-29977,-29953,-29951,-29948,-29949,-29950,-29953,-29955,-29954,-29948,-8245,-4454,-1585,-1416,-29965,-29965,-29968,-29968,-29969,-29970,-29969,-29968,-29981,-29981,-29982,-29983,-29983,-29984,-29989,-29967,-29966,-29968,-29968,-29969,-29971,-29972,-29971,-11889]} 1. d4 {[%emt 0:00:01]} Nf6 {[%emt 0:00:02]} 2. c4 {[%emt 0:00:01]} c5 {[%emt 0:00:01]} 3. d5 {[%emt 0:00:02]} e6 {[%emt 0:00:00]} 4. Nc3 {[%emt 0:00:01]} exd5 {[%emt 0:00:01]} 5. cxd5 {[%emt 0:00:01]} d6 {[%emt 0:00:01]} 6. e4 {[%emt 0:00:03]} g6 {[%emt 0:00:01]} 7. f4 {[%emt 0:00:02]} Bg7 {[%emt 0:00:01]} 8. Bb5+ {[%emt 0:00:02]} Nfd7 {[%emt 0:00:01]} 9. Nf3 {[%emt 0:00:03]} a6 {[%emt 0:00:01]} 10. Bd3 {[%emt 0:00:03]} b5 {[%emt 0:00:01]} 11. O-O {[%emt 0:00:04]} O-O {[%emt 0:00:03]} 12. a3 {[%emt 0:00:06]} Re8 {[%emt 0:00:09] A67: Modern Benoni: Taimanov Variation.} 13. Kh1 {[%emt 0:00:03]} Ra7 {[%emt 0:00:04]} 14. Bd2 {[%emt 0:00:33]} Nf6 {[%emt 0:00:06] [#] The position is equal.} 15. f5 $146 {[%emt 0:00:03]} ({Predecessor:} 15. b4 Nbd7 16. Rc1 Rc7 17. Bb1 cxb4 18. axb4 Nb6 19. Be3 Nc4 20. Bg1 Nh5 21. Ne2 {0-1 Gonzalez Garcia,J (2494)-Lie,K (2493) Olympiad-37 Turin 2006 (2)}) 15... b4 {[%emt 0:00:10]} (15... Nbd7 $11) 16. axb4 $14 {[%emt 0:00:11]} cxb4 {[%emt 0:00:02]} 17. Nb5 {[%emt 0:00:56]} (17. Ne2 $1 $16) 17... Rae7 {[%emt 0:00:02]} (17... Rb7 $5 {[%cal Ra6b5]} 18. Nbd4 Nxe4 $15) 18. Nxd6 {[%emt 0:00:22]} Qxd6 $19 {[%emt 0:00:05]} 19. e5 {[%emt 0:00:01]} Rxe5 {[%emt 0:00:25]} (19... Qxd5 20. exf6 Bxf6 21. Bxb4 $11) 20. Nxe5 {[%emt 0:00:01]} Qxe5 {[%emt 0:00:20]} 21. Re1 {[%emt 0:01:16]} Qxd5 {[%emt 0:00:03]} 22. Rxe8+ {[%emt 0:00:01]} Nxe8 {[%emt 0:00:02]} 23. Qe2 {[%emt 0:00:01]} Nd6 {[%emt 0:00:10]} (23... Bxb2 24. Qxe8+ Kg7 25. Bxb4 $18 (25. Qxc8 $2 Bxa1 26. f6+ Bxf6 $17) (25. fxg6 hxg6 26. Rd1 Bb7 $16)) ({Better is} 23... Nf6 $1 $19 {aiming for ...Nc6.} 24. fxg6 hxg6 25. Bxb4 Be6) 24. fxg6 $17 {[%emt 0:00:06]} hxg6 {[%emt 0:00:05]} (24... Bxb2 25. gxf7+ Kxf7 26. Rf1+ Bf6 27. Bxb4 $16) 25. Bxb4 {[%emt 0:00:02]} Be6 {[%emt 0:00:13]} (25... Bd7 $17 26. Rd1 Nf5) 26. Rd1 {[%emt 0:00:03]} (26. Bxg6 $1 $15 fxg6 27. Rd1) 26... Nc6 $1 {[%emt 0:00:21]} 27. Bxg6 {[%emt 0:00:27]} Qc4 {[%emt 0:00:16] Really sharp!} (27... Nxb4 28. Rxd5 Nxd5 29. Qxa6 fxg6 30. Qxd6 $16) 28. Bh7+ {[%emt 0:00:24][%mdl 64] Decoy} Kxh7 {[%emt 0:00:06]} 29. Qh5+ {[%emt 0:00:00]} Kg8 {[%emt 0:00:02]} 30. Bxd6 {[%emt 0:00:02]} Bxb2 {[%emt 0:00:32] This pair of bishops is nice.} (30... Qb3 $17 31. Ba3 Qa4) 31. Qg5+ $11 {[%emt 0:00:09]} Bg7 {[%emt 0:00:04]} 32. Bf8 $1 {[%emt 0:00:13][%csl Gf8][%cal Rg5g7][%mdl 64] Decoy, Back Rank} Qg4 $1 {[%emt 0:00:02][%cal Rg4d1]} (32... Kxf8 $2 {is a self mate.} 33. Rd8+ Nxd8 34. Qxd8#) 33. Qxg7+ {[%emt 0:00:03]} Qxg7 {[%emt 0:00:01]} 34. Bxg7 {[%emt 0:00:01]} Kxg7 {[%emt 0:00:01]} 35. Rd6 {[%emt 0:00:07]} Nb4 {[%emt 0:00:04]} 36. Rb6 {[%emt 0:00:01]} a5 {[%emt 0:00:03][%cal Ba6a5,Ba5a4,Ba4a3][%mdl 32]} 37. Rb5 {[%emt 0:00:07]} Nc6 {[%emt 0:00:01]} 38. Rc5 {[%emt 0:00:07]} Bd7 {[%emt 0:00:01]} 39. Rc4 {[%emt 0:00:15]} Kf6 {[%emt 0:00:12]} (39... Nb4 $5 {[%cal Rd7e6]} 40. Rf4 Kg6 $17) 40. Kg1 {[%emt 0:00:00]} Ne5 {[%emt 0:00:03]} 41. Rc5 {[%emt 0:00:06]} a4 {[%emt 0:00:03] Strongly threatening ...a3.} 42. Ra5 {[%emt 0:00:00]} Nc4 {[%emt 0:00:02]} 43. Ra6+ {[%emt 0:00:01]} Ke5 {[%emt 0:00:05]} 44. h4 {[%emt 0:00:01]} ({White has to play} 44. Ra7 $15 Ke6 45. Kf2) 44... a3 $19 {[%emt 0:00:21]} 45. h5 {[%emt 0:00:01]} Be6 {[%emt 0:00:04]} (45... Bf5 $1 $19 {is more deadly.} 46. h6 Bd3) 46. Kf2 $2 {[%emt 0:00:14][%mdl 8192]} (46. h6 $17 Bf5 47. Kf2) 46... Kf6 {[%emt 0:00:05]} 47. g4 {[%emt 0:00:02]} Kg5 {[%emt 0:00:28]} 48. Kg3 {[%emt 0:00:01]} Bxg4 {[%emt 0:00:02]} 49. h6 {[%emt 0:00:04] h7 is the strong threat.} Bf5 {[%emt 0:00:01]} 50. Ra4 {[%emt 0:00:03]} Nd6 {[%emt 0:00:15]} (50... Ne3 $142 {And now ...Nc2 would win.} 51. Rxa3 Ng4) 51. Rxa3 {[%emt 0:00:01] [#]} Bg6 $1 {[%emt 0:00:01]} ({Inferior is} 51... Kxh6 52. Ra6 $11) 52. Ra6 $2 {[%emt 0:00:03] [#]} (52. Kf3 {keeps fighting.}) 52... Nf5+ $1 {[%emt 0:00:02]} 53. Kf3 $2 {[%emt 0:00:01]} (53. Kf2 Nxh6 54. Ke3) 53... Nxh6 {[%emt 0:00:02]} 54. Ra5+ {[%emt 0:00:01]} f5 {[%emt 0:00:02]} 55. Rb5 {[%emt 0:00:01]} Bh5+ {[%emt 0:00:02]} 56. Kg3 {[%emt 0:00:01]} Ng4 {[%emt 0:00:01] Hoping for ...Nf6.} 57. Ra5 {[%emt 0:00:00]} Nf6 {[%emt 0:00:02]} 58. Re5 {[%emt 0:00:02]} Ne4+ {[%emt 0:00:01]} 59. Kg2 {[%emt 0:00:01]} Kg4 {[%emt 0:00:01]} 60. Ra5 {[%emt 0:00:01]} f4 {[%emt 0:00:01]} 61. Ra3 {[%emt 0:00:01]} Bf7 {[%emt 0:00:02]} 62. Rd3 {[%emt 0:00:01]} Ng5 {[%emt 0:00:02]} 63. Rd4 {[%emt 0:00:02]} Bg6 {[%emt 0:00:01]} 64. Kf2 {[%emt 0:00:03]} Be4 {[%emt 0:00:02]} 65. Ra4 {[%emt 0:00:03]} Nh3+ {[%emt 0:00:01]} 66. Kf1 {[%emt 0:00:01]} Bf3 {[%emt 0:00:03]} 67. Ra7 {[%emt 0:00:04]} Kg3 {[%emt 0:00:01] ( -> ...Bg2+)} 68. Ra3 {[%emt 0:00:02]} Ng5 {[%emt 0:00:03]} 69. Ra7 {[%emt 0:00:02]} Bg4 {[%emt 0:00:01] Black mates.} 70. Ra5 {[%emt 0:00:02]} Ne4 {[%emt 0:00:05]} 71. Ra2 {[%emt 0:00:04]} f3 {[%emt 0:00:04]} 72. Rb2 {[%emt 0:00:05]} Bh3+ {[%emt 0:00:10]} 73. Kg1 {[%emt 0:00:00]} Be6 {[%emt 0:00:06]} (73... f2+ 74. Rxf2 Nxf2 $11) 74. Rg2+ {[%emt 0:00:01]} Kf4 {[%emt 0:00:01]} 75. Rb2 {[%emt 0:00:04]} Ke3 {[%emt 0:00:03]} 76. Kf1 {[%emt 0:00:04]} Bc4+ {[%emt 0:00:10]} 77. Ke1 {[%emt 0:00:01]} Kf4 {[%emt 0:00:01]} ({Weaker is} 77... f2+ 78. Rxf2 Nxf2 $11) 78. Rc2 {[%emt 0:00:04]} Bd3 {[%emt 0:00:03]} 79. Ra2 {[%emt 0:00:01]} Kg3 {[%emt 0:00:03]} 80. Rb2 {[%emt 0:00:01]} f2+ {[%emt 0:00:02] Weighted Error Value: White=0.57/Black=0.35} 0-1

[Event "Superbet Blitz Poland 2023"]
[Site "Warsaw"]
[Date "2023.05.25"]
[Round "15"]
[White "Giri, Anish"]
[Black "Wojtaszek, Radoslaw"]
[Result "1/2-1/2"]
[ECO "D30"]
[WhiteElo "2768"]
[BlackElo "2670"]
[Annotator "TA"]
[PlyCount "159"]
[EventDate "2023.05.24"]
[EventType "tourn"]
[EventCountry "POL"]
[SourceTitle "playchess.com"]
[Source "ChessBase"]
[SourceQuality "1"]
[TimeControl "300+2"]

{[%evp 18,159,18,13,13,16,41,28,52,41,43,47,39,45,52,39,64,39,84,81,81,59,58,61,58,53,60,50,48,48,48,54,54,54,54,54,54,50,54,41,49,49,48,46,62,44,104,54,123,123,123,123,167,167,167,167,370,168,168,167,167,167,167,0,167,167,167,167,168,167,167,167,168,167,167,167,167,167,167,167,167,123,123,123,167,123,123,123,167,167,167,167,167,178,178,108,108,107,107,0,108,108,119,108,108,108,108,108,108,108,108,108,108,108,108,0,108,0,119,108,108,108,108,108,108,107,107,0,0,0,0,0,0,0,0,0,0,0,0,0,0,0,0,0]} 1. c4 {[%emt 0:00:00]} Nf6 {[%emt 0:00:02]} 2. Nf3 {[%emt 0:00:04]} e6 {[%emt 0:00:01]} 3. g3 {[%emt 0:00:00]} d5 {[%emt 0:00:01]} 4. Bg2 {[%emt 0:00:01]} dxc4 {[%emt 0:00:04]} 5. Qa4+ {[%emt 0:00:01]} c6 {[%emt 0:00:02]} 6. Qxc4 {[%emt 0:00:02]} b5 {[%emt 0:00:01]} 7. Qb3 {[%emt 0:00:09]} Bb7 {[%emt 0:00:02]} 8. O-O {[%emt 0:00:02]} Be7 {[%emt 0:00:06]} 9. d4 {[%emt 0:00:02]} O-O {[%emt 0:00:04]} 10. Nc3 {[%emt 0:00:06]} a6 {[%emt 0:00:15] D30: Queen's Gambit Declined: Systems without Nc3.} 11. Rd1 {[%emt 0:00:02]} Nbd7 {[%emt 0:00:17]} 12. Ne5 {[%emt 0:00:02]} Rc8 {[%emt 0:00:07] [#] White has an edge.} 13. Nxd7 $146 {[%emt 0:00:34]} ({Predecessor:} 13. Bf4 Qb6 14. Rac1 Rfd8 15. Nxd7 Nxd7 16. Be3 Qa5 17. Ne4 Nf6 18. Bg5 Qb6 19. Nc5 Rxd4 20. Rxd4 Bxc5 {1-0 Seresin,F (2258)-Varriale,L (2226) ITA-ch U20 78th 2018 (4)}) 13... Nxd7 {[%emt 0:00:09]} 14. Bf4 {[%emt 0:00:03]} Qb6 {[%emt 0:00:06]} 15. a4 {[%emt 0:00:03]} Rfd8 {[%emt 0:00:15]} 16. Be3 {[%emt 0:00:16][%cal Od4d5]} Qc7 {[%emt 0:00:18]} 17. Rac1 {[%emt 0:00:04]} Qb8 {[%emt 0:00:11] [#]} 18. Ne4 $1 {[%emt 0:00:06]} Qa8 {[%emt 0:00:52][%cal Oc6c5]} 19. Nc5 {[%emt 0:00:15] White is much more active.} Nxc5 {[%emt 0:00:02]} 20. dxc5 {[%emt 0:00:01]} Rxd1+ {[%emt 0:00:02]} 21. Rxd1 {[%emt 0:00:01]} Rd8 {[%emt 0:00:01]} 22. Qc2 {[%emt 0:00:57]} Rxd1+ {[%emt 0:00:12]} 23. Qxd1 {[%emt 0:00:01]} Qd8 {[%emt 0:00:01] Dodges Qd7} 24. Qxd8+ {[%emt 0:00:18]} Bxd8 {[%emt 0:00:01]} 25. axb5 {[%emt 0:00:02]} axb5 $14 {[%emt 0:00:01][%mdl 4096] Endgame KBB-KBB} 26. b4 {[%emt 0:00:16]} Bf6 {[%emt 0:00:09]} 27. Bd2 {[%emt 0:00:01] Dodges Bc3} Kf8 {[%emt 0:00:06]} 28. f4 {[%emt 0:00:02]} Ke7 {[%emt 0:00:16]} 29. g4 {[%emt 0:00:14][%cal Bg3g4,Bg4g5][%mdl 32]} g6 {[%emt 0:00:02]} 30. Kf2 {[%emt 0:00:54]} Kd7 {[%emt 0:00:02]} 31. Ke3 {[%emt 0:00:04]} Bc8 {[%emt 0:00:19]} ({Black should play} 31... e5 $14) 32. Kd3 {[%emt 0:00:03]} (32. g5 $16 Ba1 33. Kd3) 32... Kc7 {[%emt 0:00:25]} ({Black should try} 32... Bh4 $14) 33. g5 $16 {[%emt 0:00:06]} Be7 {[%emt 0:00:10]} 34. Bc3 {[%emt 0:00:01]} Bd7 {[%emt 0:00:03]} 35. Be5+ {[%emt 0:00:04]} Kd8 {[%emt 0:00:09]} 36. Kd4 {[%emt 0:00:04] Threatens to win with Bf6.} Ke8 $2 {[%emt 0:00:10]} (36... Bf8 37. Bf6+ Kc7) 37. Bg7 {[%emt 0:00:12]} (37. Bf6 $142 Bd8 38. Bxd8 Kxd8 39. Ke5) 37... Bd8 $18 {[%emt 0:00:06]} 38. Bf6 {[%emt 0:00:08] aiming for Bxd8.} Bc7 {[%emt 0:00:01]} 39. Be5 {[%emt 0:00:10]} Bd8 {[%emt 0:00:00]} 40. Bf6 {[%emt 0:00:03] And now Bxd8 would win.} Bc7 {[%emt 0:00:01]} 41. e3 {[%emt 0:00:02]} Kf8 {[%emt 0:00:01]} 42. h4 {[%emt 0:00:06][%cal Bh2h4,Bh4h5][%mdl 32]} Ke8 {[%emt 0:00:02]} 43. Bf3 {[%emt 0:00:01]} Kf8 {[%emt 0:00:02]} 44. h5 {[%emt 0:00:00]} Ke8 {[%emt 0:00:04]} 45. h6 {[%emt 0:00:01]} Kf8 {[%emt 0:00:02]} 46. Be5 {[%emt 0:00:09]} Bd8 {[%emt 0:00:05]} 47. Bg7+ {[%emt 0:00:01]} Ke8 {[%emt 0:00:02]} 48. Bf6 {[%emt 0:00:04] Bxd8 would be deadly.} Bc7 {[%emt 0:00:01]} 49. Be2 {[%emt 0:00:09]} Bc8 {[%emt 0:00:01]} 50. Bd3 {[%emt 0:00:03]} Bd7 {[%emt 0:00:01]} 51. Bc2 {[%emt 0:00:00]} Bc8 {[%emt 0:00:01]} 52. Bb1 {[%emt 0:00:01]} Bd7 {[%emt 0:00:01]} 53. Be4 {[%emt 0:00:25]} Kf8 {[%emt 0:00:01]} 54. Bg2 {[%emt 0:00:01]} Ke8 {[%emt 0:00:01]} 55. Be5 {[%emt 0:00:01]} Bd8 {[%emt 0:00:00]} 56. e4 {[%emt 0:00:03]} ({Better is} 56. Bg7 $18) 56... Bc8 $16 {[%emt 0:00:10]} 57. Bg7 {[%emt 0:00:06]} Bc7 {[%emt 0:00:03]} 58. Be5 {[%emt 0:00:00]} Bd8 {[%emt 0:00:01]} 59. Bf3 {[%emt 0:00:01]} Bd7 {[%emt 0:00:01]} 60. Bd1 {[%emt 0:00:00]} Bc8 {[%emt 0:00:03]} 61. Bc2 {[%emt 0:00:01]} Bd7 {[%emt 0:00:00]} 62. Bd3 {[%emt 0:00:00]} Bc8 {[%emt 0:00:01]} 63. Bb1 {[%emt 0:00:09]} Bd7 64. Ba2 Bc8 {[%emt 0:00:01]} 65. Bb3 {[%emt 0:00:00]} Bd7 {[%emt 0:00:01]} 66. Bd1 {[%emt 0:00:01]} Bc8 $1 {[%emt 0:00:00]} 67. Bf3 {[%emt 0:00:01]} Bd7 $1 {[%emt 0:00:01]} 68. Ke3 {[%emt 0:00:04]} Bc8 {[%emt 0:00:01]} 69. Kd3 {[%emt 0:00:06]} Bd7 {[%emt 0:00:00]} 70. Kd4 Bc8 {[%emt 0:00:01]} 71. Bf6 {[%emt 0:00:01] Black must now prevent Bxd8.} Bc7 {[%emt 0:00:00] [#]} 72. f5 {[%emt 0:00:03]} Bf4 {[%emt 0:00:12] The position is equal.} 73. e5 {[%emt 0:00:05]} Bd7 {[%emt 0:00:03]} 74. fxg6 {[%emt 0:00:03]} fxg6 {[%emt 0:00:01]} 75. Kc3 {[%emt 0:00:02] Against Bd2+} Kf7 {[%emt 0:00:03]} 76. Be4 {[%emt 0:00:01]} Bg3 {[%emt 0:00:10]} 77. Kb3 {[%emt 0:00:01]} Be1 {[%emt 0:00:01]} 78. Bd3 {[%emt 0:00:02]} Be8 {[%emt 0:00:02]} 79. Be4 {[%emt 0:00:00]} Bd7 {[%emt 0:00:00]} 80. Bd3 {[%emt 0:00:02] Blacks defense is rewarded with a draw.   Weighted Error Value: White=0.16 (very precise) /Black=0.11 (very precise)} 1/2-1/2

[Event "Superbet Blitz Poland 2023"]
[Site "Warsaw"]
[Date "2023.05.25"]
[Round "15"]
[White "Aronian, Levon"]
[Black "Deac, Bogdan-Daniel"]
[Result "1-0"]
[ECO "D02"]
[WhiteElo "2745"]
[BlackElo "2700"]
[Annotator "TA"]
[PlyCount "81"]
[EventDate "2023.05.24"]
[EventType "tourn"]
[EventCountry "POL"]
[SourceTitle "playchess.com"]
[Source "ChessBase"]
[SourceQuality "1"]
[TimeControl "300+2"]

{[%evp 9,81,0,23,17,11,25,16,11,36,37,27,8,30,18,23,9,6,0,0,0,0,0,0,16,18,16,41,39,43,48,150,145,106,131,102,110,107,109,104,92,90,89,85,107,100,82,91,0,7,10,24,12,6,0,0,0,0,-6,0,0,0,-7,0,0,0,0,0,0,0,0,0,0,2561,2235]} 1. d4 {[%emt 0:00:01]} Nf6 {[%emt 0:00:01]} 2. Bf4 {[%emt 0:00:02]} d5 {[%emt 0:00:01]} 3. e3 {[%emt 0:00:01]} c5 {[%emt 0:00:01]} 4. Nf3 {[%emt 0:00:01]} Nc6 {[%emt 0:00:03]} 5. Nbd2 {[%emt 0:00:02]} Nh5 {[%emt 0:00:01]} 6. dxc5 {[%emt 0:00:02] D02: 1 d4 d5 2 Nf3 sidelines, including 2...Nf6 3 g3 and 2...Nf6 3 Bf4.} Nxf4 {[%emt 0:00:02]} 7. exf4 {[%emt 0:00:01]} Qa5 {[%emt 0:00:01]} 8. c4 {[%emt 0:00:10] The position is equal.} e6 {[%emt 0:00:01]} 9. a3 {[%emt 0:00:08]} Qxc5 {[%emt 0:00:01]} (9... Bxc5 $2 10. b4 Bxb4 11. axb4 Qxb4 12. Bd3 $18) 10. b4 {[%emt 0:00:02]} Qd6 {[%emt 0:00:01]} 11. g3 {[%emt 0:00:01]} g6 {[%emt 0:00:02]} 12. Bg2 {[%emt 0:00:12]} Bg7 {[%emt 0:00:01]} 13. Rb1 {[%emt 0:00:01]} O-O {[%emt 0:00:44]} 14. O-O {[%emt 0:00:02] [#]} Rd8 $146 {[%emt 0:00:01]} ({Predecessor:} 14... b6 15. cxd5 exd5 16. Nc4 Qd8 17. Nce5 Bb7 18. Nxc6 Bxc6 19. Ne5 Bb7 20. Qd4 Re8 {½-½ Grischuk,A (2742)-Vokhidov,S (2536) Titled Tuesday intern op 17th May Early blitz 2022 (9)}) 15. Qe2 {[%emt 0:00:14]} a5 {[%emt 0:00:54][%cal Ra5b4]} 16. b5 {[%emt 0:00:21]} Ne7 {[%emt 0:00:54]} 17. a4 {[%emt 0:00:04]} b6 {[%emt 0:00:03]} 18. Ne5 {[%emt 0:00:24]} Bb7 {[%emt 0:00:03]} 19. Rfd1 {[%emt 0:00:01]} Rac8 {[%emt 0:00:11]} ({Black should try} 19... Qc7 $14) 20. Ne4 $16 {[%emt 0:00:12][%mdl 64] Pin} Qc7 {[%emt 0:01:54] [#]} 21. Nxf7 $1 {[%emt 0:00:02][%mdl 576] Decoy. White has more active pieces.} dxe4 {[%emt 0:00:01]} (21... Kxf7 $2 22. Ng5+ Ke8 23. Qxe6 $18) 22. Nxd8 {[%emt 0:00:02]} Rxd8 {[%emt 0:00:01]} 23. Rxd8+ {[%emt 0:00:05]} Qxd8 {[%emt 0:00:01]} 24. Bxe4 {[%emt 0:00:01]} Bxe4 {[%emt 0:00:03]} 25. Qxe4 {[%emt 0:00:02]} Qd6 {[%emt 0:00:05] [#]} 26. c5 $1 {[%emt 0:00:39][%mdl 64] Deflection} Qxc5 {[%emt 0:00:02]} 27. Qxe6+ {[%emt 0:00:01]} Kf8 {[%emt 0:00:01]} 28. Rd1 {[%emt 0:00:06]} (28. Re1 $16) 28... Bd4 $11 {[%emt 0:00:23]} 29. Kg2 {[%emt 0:00:05] Qe4 is the strong threat.} Qc3 {[%emt 0:00:12]} 30. Qe4 {[%emt 0:00:50]} (30. Qe1 {simplifies} Qxe1 31. Rxe1 Bc5 32. Kf3) 30... Bc5 {[%emt 0:00:07]} 31. Rd8+ {[%emt 0:00:01]} Kf7 $1 32. f5 gxf5 {[%emt 0:00:05]} 33. Qh4 {[%emt 0:00:01] Really sharp!} Qg7 {[%emt 0:00:03]} 34. Qc4+ {[%emt 0:00:05]} Kg6 {[%emt 0:00:02]} 35. h4 {[%emt 0:00:07]} Qf6 {[%emt 0:00:01]} (35... Qe5 {with more complications.} 36. Rd7 Qe1 37. Qf4 Qe6) 36. Qf4 {[%emt 0:00:10]} Kf7 {[%emt 0:00:02]} 37. h5 {[%emt 0:00:15]} h6 {[%emt 0:00:02]} 38. Rd3 {[%emt 0:00:15]} Qe6 {[%emt 0:00:02]} 39. Rf3 {[%emt 0:00:04]} Kg7 {[%emt 0:00:01]} 40. g4 {[%emt 0:00:07]} fxg4 $2 {[%emt 0:00:04][%mdl 8192]} (40... Qd6 $11) 41. Qf8+ {[%emt 0:00:03] Weighted Error Value: White=0.06 (flawless) /Black=0.07 (flawless)} 1-0

[Event "Superbet Blitz Poland 2023"]
[Site "Warsaw"]
[Date "2023.05.25"]
[Round "15"]
[White "Rapport, Richard"]
[Black "Carlsen, Magnus"]
[Result "0-1"]
[ECO "A45"]
[WhiteElo "2745"]
[BlackElo "2853"]
[Annotator "TA"]
[PlyCount "40"]
[EventDate "2023.05.24"]
[EventType "tourn"]
[EventCountry "POL"]
[SourceTitle "playchess.com"]
[Source "ChessBase"]
[SourceQuality "1"]
[TimeControl "300+2"]

{[%evp 9,40,11,12,11,14,9,11,11,12,7,14,-14,-11,-14,12,0,12,-22,-22,-21,-20,-22,-26,-185,-181,-185,-192,-418,-407,-428,-192,-193,-191]} 1. d4 {[%emt 0:00:04]} Nf6 {[%emt 0:00:03]} 2. Bg5 {[%emt 0:00:02]} e6 {[%emt 0:00:05]} 3. Nd2 {[%emt 0:00:04]} h6 {[%emt 0:00:03]} 4. Bh4 {[%emt 0:00:01]} c5 {[%emt 0:00:13]} 5. e3 {[%emt 0:00:22]} cxd4 {[%emt 0:00:07]} 6. exd4 {[%emt 0:00:01] A45: Trompowsky Attack.} Be7 {[%emt 0:00:01]} 7. c3 {[%emt 0:00:04]} b6 {[%emt 0:00:02]} 8. Bd3 {[%emt 0:00:14] The position is equal.} Ba6 {[%emt 0:00:05]} 9. Qf3 {[%emt 0:00:11]} d5 {[%emt 0:00:04]} 10. Bc2 {[%emt 0:00:09]} Nc6 {[%emt 0:00:09] [#]} 11. Ne2 $146 {[%emt 0:00:06]} ({Predecessor:} 11. Bxf6 Bxf6 12. Qe3 Rc8 13. Nb3 O-O 14. f4 g5 15. Nf3 gxf4 16. Qxf4 Bg5 17. Qg3 {1-0 Stefanova,A (2497)-Alexandrova,O (2406) EU-Cup (Women) 07th 2002 (1.2)}) 11... Ne4 {[%emt 0:00:21] [#] And now ...Nxd2 would win.} 12. Bxe7 {[%emt 0:00:50]} Nxd2 $1 {[%emt 0:00:03]} 13. Qxf7+ {[%emt 0:00:02]} Kxf7 {[%emt 0:00:02]} 14. Bxd8 {[%emt 0:00:01] A strong pair of Bishops.} Nc4 {[%emt 0:00:02]} 15. Bc7 {[%emt 0:00:15] Threatens to win with Bd3.} Nxb2 {[%emt 0:00:08] Hoping for ...Rhc8.} 16. h4 $2 {[%emt 0:00:09] Now White is beyond hope.} (16. Bg3 $11 {and White stays safe.}) 16... Rac8 {[%emt 0:00:02]} 17. Rb1 {[%emt 0:00:33]} Nc4 {[%emt 0:00:05]} 18. Bf4 $2 {[%emt 0:00:47]} (18. Be5) 18... Na3 $1 $19 {[%emt 0:00:02][%csl LRb1,LRc2]} 19. Rb2 {[%emt 0:00:05]} Nxc2+ {[%emt 0:00:02]} (19... Bxe2 $142 20. Kxe2 Nxc2 21. Rxc2 Nxd4+ {[%mdl 64] Pin, Double Attack} 22. Kd3 Nxc2 23. Kxc2 Rc4) 20. Rxc2 {[%emt 0:00:03] [#]} Nb4 $1 {[%emt 0:00:01][%mdl 576] Pin.   Weighted Error Value: White=0.43/Black=0.23 (precise)} 0-1